[Event "Late-Titled-Tuesday-Blitz-April-23-2024"]
[Site "Chess.com"]
[Date "2024.04.23"]
[Round "6"]
[White "tylityli"]
[Black "yuriydovzik"]
[Result "1-0"]
[WhiteElo "2326"]
[BlackElo "2147"]
[TimeControl "180+1"]
[EndTime "15:06:34 PDT"]
[Termination "tylityli won on time"]

1. d4 {[%clk 0:03:00.9]} 1... Nf6 {[%clk 0:02:55.7]} 2. c4 {[%clk 0:03:00.6]}
2... e6 {[%clk 0:02:55.5]} 3. Nc3 {[%clk 0:03:00.2]} 3... Bb4 {[%clk 0:02:54.6]}
4. e3 {[%clk 0:02:59.8]} 4... b6 {[%clk 0:02:53.6]} 5. Ne2 {[%clk 0:02:57.3]}
5... Bb7 {[%clk 0:02:52.3]} 6. a3 {[%clk 0:02:57.6]} 6... Be7 {[%clk 0:02:50.6]}
7. d5 {[%clk 0:02:58]} 7... O-O {[%clk 0:02:46.7]} 8. g3 {[%clk 0:02:57.6]} 8...
d6 {[%clk 0:02:38.5]} 9. Bg2 {[%clk 0:02:56.6]} 9... Nbd7 {[%clk 0:02:28.7]} 10.
b4 {[%clk 0:02:55.8]} 10... a5 {[%clk 0:02:24.1]} 11. Rb1 {[%clk 0:02:49.9]}
11... Ne5 {[%clk 0:02:09.6]} 12. Qd4 {[%clk 0:02:45.3]} 12... Nfd7 {[%clk
0:01:54.9]} 13. O-O {[%clk 0:02:37.2]} 13... Bf6 {[%clk 0:01:24.4]} 14. Kh1
{[%clk 0:02:22.4]} 14... axb4 {[%clk 0:00:53.3]} 15. axb4 {[%clk 0:02:21]} 15...
Ng6 {[%clk 0:00:34]} 16. Qd2 {[%clk 0:01:46.4]} 16... Nde5 {[%clk 0:00:32.8]}
17. c5 {[%clk 0:01:32.3]} 17... bxc5 {[%clk 0:00:16.3]} 18. bxc5 {[%clk
0:01:31.7]} 18... Ba6 {[%clk 0:00:10.8]} 19. dxe6 {[%clk 0:01:26.9]} 19... fxe6
{[%clk 0:00:09.9]} 20. cxd6 {[%clk 0:01:22]} 20... cxd6 {[%clk 0:00:06.8]} 21.
Rd1 {[%clk 0:01:17.4]} 1-0

[Event "Late-Titled-Tuesday-Blitz-April-23-2024"]
[Site "Chess.com"]
[Date "2024.04.23"]
[Round "6"]
[White "Hikaru"]
[Black "TheSilmarils"]
[Result "1-0"]
[WhiteElo "3318"]
[BlackElo "2976"]
[TimeControl "180+1"]
[EndTime "15:06:39 PDT"]
[Termination "Hikaru won by resignation"]

1. h4 {[%clk 0:03:00.9]} 1... a5 {[%clk 0:02:58]} 2. c4 {[%clk 0:02:57.2]} 2...
Nf6 {[%clk 0:02:53.6]} 3. Nc3 {[%clk 0:02:57.1]} 3... e5 {[%clk 0:02:38.3]} 4.
g3 {[%clk 0:02:50.7]} 4... c6 {[%clk 0:02:36.6]} 5. d4 {[%clk 0:02:50.6]} 5...
exd4 {[%clk 0:02:33.5]} 6. Qxd4 {[%clk 0:02:51.5]} 6... d5 {[%clk 0:02:33.3]} 7.
Bg2 {[%clk 0:02:51.8]} 7... Na6 {[%clk 0:02:21.2]} 8. Bg5 {[%clk 0:02:45.7]}
8... Be7 {[%clk 0:02:15.9]} 9. cxd5 {[%clk 0:02:44.8]} 9... Nb4 {[%clk 0:02:10]}
10. O-O-O {[%clk 0:02:44.1]} 10... cxd5 {[%clk 0:02:03.7]} 11. a3 {[%clk
0:02:40.9]} 11... Nc6 {[%clk 0:01:57.5]} 12. Qf4 {[%clk 0:02:40.1]} 12... O-O
{[%clk 0:01:45.8]} 13. Nxd5 {[%clk 0:02:39.9]} 13... Nxd5 {[%clk 0:01:44.5]} 14.
Bxd5 {[%clk 0:02:39.9]} 14... Qb6 {[%clk 0:01:34.6]} 15. Nf3 {[%clk 0:02:34.5]}
15... Be6 {[%clk 0:01:07.1]} 16. Bxe7 {[%clk 0:02:32.7]} 16... Nxe7 {[%clk
0:00:53.5]} 17. Bxe6 {[%clk 0:02:30.9]} 17... fxe6 {[%clk 0:00:47.7]} 18. Qd4
{[%clk 0:02:30.9]} 18... Qb5 {[%clk 0:00:41]} 19. Qd3 {[%clk 0:02:30.1]} 19...
Qc5+ {[%clk 0:00:39.9]} 20. Kb1 {[%clk 0:02:29.9]} 20... Qxf2 {[%clk 0:00:40.7]}
21. g4 {[%clk 0:02:02.5]} 21... Nd5 {[%clk 0:00:39.6]} 22. Ng5 {[%clk
0:02:00.2]} 22... g6 {[%clk 0:00:17.4]} 23. h5 {[%clk 0:01:43.2]} 23... Qf6
{[%clk 0:00:17.6]} 24. Ne4 {[%clk 0:01:39.2]} 24... Qe5 {[%clk 0:00:16]} 25.
hxg6 {[%clk 0:01:39.2]} 25... hxg6 {[%clk 0:00:16.9]} 26. Rh6 {[%clk 0:01:38.5]}
26... Nf4 {[%clk 0:00:17]} 27. Qe3 {[%clk 0:01:31]} 27... Kg7 {[%clk 0:00:14.5]}
28. Rd7+ {[%clk 0:01:22.6]} 28... Kxh6 {[%clk 0:00:14.4]} 29. g5+ {[%clk
0:01:23.1]} 29... Kh5 {[%clk 0:00:14.4]} 30. Ng3+ {[%clk 0:01:23.4]} 30... Kg4
{[%clk 0:00:13.5]} 31. Qxe5 {[%clk 0:01:24.3]} 31... Kxg3 {[%clk 0:00:14.1]} 32.
e3 {[%clk 0:01:24.6]} 32... Rf5 {[%clk 0:00:14.2]} 33. Qc7 {[%clk 0:01:24.6]}
1-0

[Event "Late-Titled-Tuesday-Blitz-April-23-2024"]
[Site "Chess.com"]
[Date "2024.04.23"]
[Round "6"]
[White "wadsy27"]
[Black "stasOR4ik"]
[Result "0-1"]
[WhiteElo "2632"]
[BlackElo "2472"]
[TimeControl "180+1"]
[EndTime "15:06:39 PDT"]
[Termination "stasOR4ik won by resignation"]

1. c4 {[%clk 0:03:00.9]} 1... e6 {[%clk 0:03:00.9]} 2. g3 {[%clk 0:03:00.4]}
2... d5 {[%clk 0:03:01.8]} 3. Bg2 {[%clk 0:03:00.8]} 3... Nf6 {[%clk 0:03:02.5]}
4. Nf3 {[%clk 0:02:59.5]} 4... c6 {[%clk 0:03:03.1]} 5. b3 {[%clk 0:02:57.9]}
5... Nbd7 {[%clk 0:03:03.7]} 6. d4 {[%clk 0:02:54.1]} 6... Be7 {[%clk
0:03:03.2]} 7. O-O {[%clk 0:02:54.1]} 7... Ne4 {[%clk 0:03:03.5]} 8. Bb2 {[%clk
0:02:53.3]} 8... O-O {[%clk 0:03:03.5]} 9. Nc3 {[%clk 0:02:52]} 9... f5 {[%clk
0:03:03.6]} 10. Rc1 {[%clk 0:02:43.2]} 10... g5 {[%clk 0:03:02.2]} 11. e3 {[%clk
0:02:40.6]} 11... g4 {[%clk 0:03:01.7]} 12. Ne5 {[%clk 0:02:39.9]} 12... Nxe5
{[%clk 0:03:01.3]} 13. dxe5 {[%clk 0:02:40.2]} 13... Bg5 {[%clk 0:02:52.1]} 14.
Nxe4 {[%clk 0:02:39]} 14... dxe4 {[%clk 0:02:45.1]} 15. Ba3 {[%clk 0:02:39]}
15... Re8 {[%clk 0:02:40.2]} 16. Bd6 {[%clk 0:02:32.7]} 16... a5 {[%clk
0:02:24.6]} 17. c5 {[%clk 0:02:31.8]} 17... a4 {[%clk 0:02:16.4]} 18. b4 {[%clk
0:02:29.6]} 18... b6 {[%clk 0:02:14.6]} 19. Qd4 {[%clk 0:02:17.4]} 19... b5
{[%clk 0:02:00.7]} 20. a3 {[%clk 0:02:13.6]} 20... Ra7 {[%clk 0:01:59.5]} 21.
Rfd1 {[%clk 0:02:12.4]} 21... h5 {[%clk 0:01:56.4]} 22. Qa1 {[%clk 0:01:52.8]}
22... Rd7 {[%clk 0:01:44.3]} 23. Rd4 {[%clk 0:01:49.1]} 23... Kh7 {[%clk
0:01:41.3]} 24. Rcd1 {[%clk 0:01:48.4]} 24... Kg6 {[%clk 0:01:41.4]} 25. R1d2
{[%clk 0:01:48.2]} 25... Bh6 {[%clk 0:01:27.7]} 26. Qd1 {[%clk 0:01:46]} 26...
Qg5 {[%clk 0:01:25.1]} 27. Be7 {[%clk 0:01:13.6]} 27... Rdxe7 {[%clk 0:01:22.1]}
28. Rd6 {[%clk 0:01:12.1]} 28... Bb7 {[%clk 0:01:14.5]} 29. Bf1 {[%clk
0:01:10.7]} 29... Bg7 {[%clk 0:01:09.2]} 30. Rd8 {[%clk 0:01:02.8]} 30... Bxe5
{[%clk 0:00:59.9]} 31. Rxe8 {[%clk 0:00:59.4]} 31... Rxe8 {[%clk 0:00:59.7]} 32.
Rd7 {[%clk 0:00:58.8]} 32... Re7 {[%clk 0:00:58.5]} 33. Rd8 {[%clk 0:00:57.4]}
33... Kf7 {[%clk 0:00:47.2]} 34. Qa1 {[%clk 0:00:55.4]} 34... Bxa1 {[%clk
0:00:46.2]} 0-1

[Event "Late-Titled-Tuesday-Blitz-April-23-2024"]
[Site "Chess.com"]
[Date "2024.04.23"]
[Round "6"]
[White "theredking89"]
[Black "ritanovikova"]
[Result "1-0"]
[WhiteElo "2796"]
[BlackElo "2175"]
[TimeControl "180+1"]
[EndTime "15:06:39 PDT"]
[Termination "theredking89 won on time"]

1. e4 {[%clk 0:03:00.9]} 1... d5 {[%clk 0:02:55.4]} 2. exd5 {[%clk 0:02:59.9]}
2... Qxd5 {[%clk 0:02:54.1]} 3. Nc3 {[%clk 0:02:59.8]} 3... Qd6 {[%clk
0:02:54.2]} 4. Nf3 {[%clk 0:02:59.3]} 4... Nf6 {[%clk 0:02:54]} 5. d4 {[%clk
0:02:59.7]} 5... c6 {[%clk 0:02:53.1]} 6. g3 {[%clk 0:03:00.1]} 6... Bg4 {[%clk
0:02:51.3]} 7. Bg2 {[%clk 0:03:00.4]} 7... e6 {[%clk 0:02:51]} 8. h3 {[%clk
0:03:00.7]} 8... Bh5 {[%clk 0:02:50.5]} 9. Bf4 {[%clk 0:03:00.8]} 9... Qd8
{[%clk 0:02:50.2]} 10. O-O {[%clk 0:03:00.6]} 10... Bd6 {[%clk 0:02:49.9]} 11.
Bxd6 {[%clk 0:02:58.4]} 11... Qxd6 {[%clk 0:02:48.6]} 12. g4 {[%clk 0:02:58.2]}
12... Bg6 {[%clk 0:02:46.6]} 13. Qe2 {[%clk 0:02:58.1]} 13... Nbd7 {[%clk
0:02:44.3]} 14. Rad1 {[%clk 0:02:56.9]} 14... O-O-O {[%clk 0:02:41.9]} 15. Ne5
{[%clk 0:02:57.1]} 15... Qc7 {[%clk 0:02:37.7]} 16. f4 {[%clk 0:02:56.5]} 16...
Qb6 {[%clk 0:01:40.6]} 17. Na4 {[%clk 0:02:49.7]} 17... Qb4 {[%clk 0:01:37.5]}
18. b3 {[%clk 0:02:47.8]} 18... Nxe5 {[%clk 0:01:10.7]} 19. c3 {[%clk
0:02:46.3]} 19... Qa5 {[%clk 0:01:04.4]} 20. fxe5 {[%clk 0:02:42.9]} 20... Nd5
{[%clk 0:00:57.7]} 21. c4 {[%clk 0:02:42.9]} 21... Nb6 {[%clk 0:00:45.3]} 22.
Nc5 {[%clk 0:02:37.2]} 22... Qc3 {[%clk 0:00:39.9]} 23. Rf3 {[%clk 0:02:30]}
23... Qb4 {[%clk 0:00:36.9]} 24. Kh2 {[%clk 0:02:26.2]} 24... h5 {[%clk
0:00:30.7]} 25. g5 {[%clk 0:02:25.8]} 25... Nd7 {[%clk 0:00:24.4]} 26. Ne4
{[%clk 0:02:24.7]} 26... Nxe5 {[%clk 0:00:17.9]} 27. dxe5 {[%clk 0:02:20.8]}
27... Rxd1 {[%clk 0:00:17.7]} 28. Qxd1 {[%clk 0:02:17.3]} 28... Bxe4 {[%clk
0:00:16.6]} 29. Rxf7 {[%clk 0:02:17.3]} 29... Rd8 {[%clk 0:00:16.3]} 30. Qf1
{[%clk 0:02:14.5]} 30... Qd2 {[%clk 0:00:09.5]} 31. Qf2 {[%clk 0:02:04.6]} 31...
Qxf2 {[%clk 0:00:06.7]} 32. Rxf2 {[%clk 0:02:05.5]} 32... Bxg2 {[%clk
0:00:06.7]} 33. Kxg2 {[%clk 0:02:05.7]} 33... Rd3 {[%clk 0:00:05.4]} 34. Rf7
{[%clk 0:02:04.6]} 34... Re3 {[%clk 0:00:04.7]} 35. Rxg7 {[%clk 0:02:04]} 35...
Rxe5 {[%clk 0:00:05.2]} 36. h4 {[%clk 0:02:04.3]} 36... Re2+ {[%clk 0:00:03.9]}
37. Kg3 {[%clk 0:02:04.2]} 37... Rxa2 {[%clk 0:00:04.8]} 38. Rh7 {[%clk
0:02:04.1]} 38... Ra3 {[%clk 0:00:03.8]} 39. g6 {[%clk 0:02:03.8]} 39... Rxb3+
{[%clk 0:00:03.4]} 40. Kf4 {[%clk 0:02:04.2]} 40... Rb1 {[%clk 0:00:03.5]} 41.
g7 {[%clk 0:02:04.6]} 41... Rf1+ {[%clk 0:00:03.7]} 42. Ke5 {[%clk 0:02:04.3]}
1-0

[Event "Late-Titled-Tuesday-Blitz-April-23-2024"]
[Site "Chess.com"]
[Date "2024.04.23"]
[Round "6"]
[White "crushernt"]
[Black "FMOlexandrProhorov"]
[Result "0-1"]
[WhiteElo "2082"]
[BlackElo "2278"]
[TimeControl "180+1"]
[EndTime "15:06:47 PDT"]
[Termination "FMOlexandrProhorov won on time"]

1. e4 {[%clk 0:03:00.9]} 1... c5 {[%clk 0:02:59.4]} 2. Nf3 {[%clk 0:02:57.7]}
2... e6 {[%clk 0:02:54]} 3. b3 {[%clk 0:02:57]} 3... d5 {[%clk 0:02:52.3]} 4.
Bb5+ {[%clk 0:02:53]} 4... Nc6 {[%clk 0:02:51.5]} 5. exd5 {[%clk 0:01:55.3]}
5... exd5 {[%clk 0:02:50.3]} 6. O-O {[%clk 0:01:53]} 6... Nf6 {[%clk 0:02:49.4]}
7. Re1+ {[%clk 0:01:43.9]} 7... Be7 {[%clk 0:02:49.8]} 8. Bb2 {[%clk 0:01:36.9]}
8... O-O {[%clk 0:02:50.7]} 9. d4 {[%clk 0:01:34.3]} 9... a6 {[%clk 0:02:47.8]}
10. Bxc6 {[%clk 0:01:23.5]} 10... bxc6 {[%clk 0:02:46.3]} 11. Ne5 {[%clk
0:01:23.9]} 11... Qc7 {[%clk 0:02:15.2]} 12. Nxc6 {[%clk 0:00:52.9]} 12... Bd6
{[%clk 0:02:14.3]} 13. Ne5 {[%clk 0:00:50.3]} 13... cxd4 {[%clk 0:02:12.2]} 14.
Bxd4 {[%clk 0:00:48.7]} 14... Bf5 {[%clk 0:02:10.4]} 15. Nc3 {[%clk 0:00:45]}
15... Rfe8 {[%clk 0:02:09.4]} 16. Nf3 {[%clk 0:00:22.6]} 16... Rxe1+ {[%clk
0:02:08.2]} 17. Qxe1 {[%clk 0:00:20]} 17... Re8 {[%clk 0:01:50.2]} 18. Qd2
{[%clk 0:00:19.7]} 18... Ne4 {[%clk 0:01:46.3]} 19. Nxe4 {[%clk 0:00:15.5]}
19... dxe4 {[%clk 0:01:45.8]} 20. Nh4 {[%clk 0:00:13.8]} 20... Bxh2+ {[%clk
0:01:44.5]} 21. Kh1 {[%clk 0:00:13.5]} 21... Bg4 {[%clk 0:01:38.4]} 22. Qg5
{[%clk 0:00:13.2]} 22... f5 {[%clk 0:01:29.6]} 23. Bxg7 {[%clk 0:00:08.7]} 23...
Bf4 {[%clk 0:01:20.1]} 24. Qf6 {[%clk 0:00:03.8]} 24... Be5 {[%clk 0:01:16.1]}
25. Qc6 {[%clk 0:00:01.1]} 25... Qxg7 {[%clk 0:01:14.2]} 0-1

[Event "Late-Titled-Tuesday-Blitz-April-23-2024"]
[Site "Chess.com"]
[Date "2024.04.23"]
[Round "6"]
[White "expii"]
[Black "IraZyne"]
[Result "0-1"]
[WhiteElo "2170"]
[BlackElo "2333"]
[TimeControl "180+1"]
[EndTime "15:06:49 PDT"]
[Termination "IraZyne won by resignation"]

1. e4 {[%clk 0:03:00.9]} 1... Nf6 {[%clk 0:02:59]} 2. e5 {[%clk 0:03:00.7]} 2...
Nd5 {[%clk 0:02:59.1]} 3. d4 {[%clk 0:03:00.8]} 3... d6 {[%clk 0:02:59.3]} 4. c4
{[%clk 0:03:00.4]} 4... Nb6 {[%clk 0:02:58.8]} 5. exd6 {[%clk 0:02:59.6]} 5...
exd6 {[%clk 0:02:58.9]} 6. Nf3 {[%clk 0:02:58]} 6... Bg4 {[%clk 0:02:57.9]} 7.
Be2 {[%clk 0:02:54.8]} 7... Be7 {[%clk 0:02:57.4]} 8. O-O {[%clk 0:02:51.6]}
8... c6 {[%clk 0:02:57.6]} 9. b3 {[%clk 0:02:49.8]} 9... O-O {[%clk 0:02:57.2]}
10. Nc3 {[%clk 0:02:43.6]} 10... d5 {[%clk 0:02:56.6]} 11. c5 {[%clk 0:02:34.3]}
11... Bxf3 {[%clk 0:02:56.4]} 12. Bxf3 {[%clk 0:02:29.3]} 12... Nc8 {[%clk
0:02:56.3]} 13. Bf4 {[%clk 0:02:28.5]} 13... Nd7 {[%clk 0:02:55.4]} 14. b4
{[%clk 0:02:19.5]} 14... Bf6 {[%clk 0:02:53.9]} 15. Qd3 {[%clk 0:02:11]} 15...
Re8 {[%clk 0:02:49.2]} 16. b5 {[%clk 0:02:07.5]} 16... Ne7 {[%clk 0:02:45.5]}
17. bxc6 {[%clk 0:02:01.4]} 17... bxc6 {[%clk 0:02:44.8]} 18. Rfe1 {[%clk
0:01:57.2]} 18... g6 {[%clk 0:02:28.4]} 19. Rad1 {[%clk 0:01:45.5]} 19... Qa5
{[%clk 0:02:23.4]} 20. Bd6 {[%clk 0:01:37.9]} 20... Nf5 {[%clk 0:02:22.7]} 21.
Rxe8+ {[%clk 0:01:35.2]} 21... Rxe8 {[%clk 0:02:21.9]} 22. Ne2 {[%clk 0:01:28]}
22... Nxd6 {[%clk 0:02:15.1]} 23. cxd6 {[%clk 0:01:26.9]} 23... Qb4 {[%clk
0:02:14.2]} 24. Qc3 {[%clk 0:01:08.1]} 24... Qxd6 {[%clk 0:02:10.6]} 25. Rc1
{[%clk 0:00:56.1]} 25... Rc8 {[%clk 0:02:01.4]} 26. Qa5 {[%clk 0:00:48.3]} 26...
Rc7 {[%clk 0:01:48.3]} 27. g3 {[%clk 0:00:33.5]} 27... Nb6 {[%clk 0:01:46.4]}
28. Qc5 {[%clk 0:00:21.9]} 28... Qe7 {[%clk 0:01:32.6]} 29. Qxe7 {[%clk
0:00:19.6]} 29... Bxe7 {[%clk 0:01:32.1]} 30. Nf4 {[%clk 0:00:16.9]} 30... Bd6
{[%clk 0:01:30.4]} 31. Nd3 {[%clk 0:00:12.8]} 31... Nc4 {[%clk 0:01:30.1]} 32.
Nc5 {[%clk 0:00:12.5]} 32... Bxc5 {[%clk 0:01:30.3]} 33. dxc5 {[%clk 0:00:13.4]}
33... f5 {[%clk 0:01:28]} 34. Be2 {[%clk 0:00:13.6]} 34... Ne5 {[%clk
0:01:23.8]} 0-1

[Event "Late-Titled-Tuesday-Blitz-April-23-2024"]
[Site "Chess.com"]
[Date "2024.04.23"]
[Round "6"]
[White "micke12a"]
[Black "nindjaxx8"]
[Result "0-1"]
[WhiteElo "2435"]
[BlackElo "2643"]
[TimeControl "180+1"]
[EndTime "15:06:53 PDT"]
[Termination "nindjaxx8 won by resignation"]

1. d4 {[%clk 0:03:00.9]} 1... d5 {[%clk 0:02:59.8]} 2. Bf4 {[%clk 0:03:00.1]}
2... Nf6 {[%clk 0:02:59.7]} 3. e3 {[%clk 0:03:00.2]} 3... Bf5 {[%clk 0:02:59.8]}
4. Bd3 {[%clk 0:02:59.5]} 4... Bg6 {[%clk 0:02:58.6]} 5. Nf3 {[%clk 0:02:59.3]}
5... e6 {[%clk 0:02:58.7]} 6. O-O {[%clk 0:02:59.1]} 6... Be7 {[%clk 0:02:59.3]}
7. c4 {[%clk 0:02:57.7]} 7... O-O {[%clk 0:02:59.5]} 8. Nc3 {[%clk 0:02:57.9]}
8... c5 {[%clk 0:02:59.6]} 9. Bxg6 {[%clk 0:02:56.9]} 9... hxg6 {[%clk
0:02:58.8]} 10. cxd5 {[%clk 0:02:57.1]} 10... exd5 {[%clk 0:02:59]} 11. Rc1
{[%clk 0:02:53.1]} 11... c4 {[%clk 0:02:58.2]} 12. b3 {[%clk 0:02:52.1]} 12...
Nbd7 {[%clk 0:02:38.9]} 13. bxc4 {[%clk 0:02:51.6]} 13... dxc4 {[%clk
0:02:37.9]} 14. a4 {[%clk 0:02:36.5]} 14... a5 {[%clk 0:02:32]} 15. e4 {[%clk
0:02:32.5]} 15... Bb4 {[%clk 0:02:28.1]} 16. e5 {[%clk 0:02:32.3]} 16... Bxc3
{[%clk 0:02:28]} 17. exf6 {[%clk 0:02:23.8]} 17... Nxf6 {[%clk 0:02:01.5]} 18.
Rxc3 {[%clk 0:02:22.1]} 18... Nd5 {[%clk 0:02:00.9]} 19. Qc1 {[%clk 0:02:14.5]}
19... Nxc3 {[%clk 0:01:58.8]} 20. Qxc3 {[%clk 0:02:15.4]} 20... Qd5 {[%clk
0:01:58.9]} 21. Rb1 {[%clk 0:02:04.9]} 21... Qe4 {[%clk 0:01:52.7]} 22. Qc1
{[%clk 0:01:58.1]} 22... c3 {[%clk 0:01:52.6]} 23. Be3 {[%clk 0:01:49.4]} 23...
Rfc8 {[%clk 0:01:50.5]} 24. Rb3 {[%clk 0:01:42.9]} 24... c2 {[%clk 0:01:38.4]}
25. h3 {[%clk 0:01:40]} 25... Qc6 {[%clk 0:01:26.5]} 26. Rb5 {[%clk 0:01:31.5]}
26... Qc4 {[%clk 0:01:22.1]} 27. d5 {[%clk 0:01:08.7]} 27... Qxa4 {[%clk
0:01:13.9]} 28. Rxb7 {[%clk 0:01:04.4]} 28... Rab8 {[%clk 0:01:06.7]} 29. Qb2
{[%clk 0:00:33.6]} 29... Rxb7 {[%clk 0:00:59]} 30. Qxb7 {[%clk 0:00:32.1]} 30...
c1=Q+ {[%clk 0:00:58.8]} 31. Bxc1 {[%clk 0:00:32.8]} 31... Rxc1+ {[%clk
0:00:59.1]} 32. Kh2 {[%clk 0:00:33.5]} 32... Qf4+ {[%clk 0:00:59.5]} 33. g3
{[%clk 0:00:30.8]} 33... Qxf3 {[%clk 0:00:59.4]} 0-1

[Event "Late-Titled-Tuesday-Blitz-April-23-2024"]
[Site "Chess.com"]
[Date "2024.04.23"]
[Round "6"]
[White "LikeWater"]
[Black "ChadBiryani"]
[Result "0-1"]
[WhiteElo "2649"]
[BlackElo "2478"]
[TimeControl "180+1"]
[EndTime "15:06:55 PDT"]
[Termination "ChadBiryani won on time"]

1. e4 {[%clk 0:02:53.5]} 1... c5 {[%clk 0:02:57.2]} 2. Nf3 {[%clk 0:02:52.6]}
2... d6 {[%clk 0:02:57.4]} 3. d4 {[%clk 0:02:49.4]} 3... cxd4 {[%clk 0:02:54.6]}
4. Nxd4 {[%clk 0:02:50.3]} 4... Nf6 {[%clk 0:02:54.2]} 5. Nc3 {[%clk 0:02:48.5]}
5... Nc6 {[%clk 0:02:54.1]} 6. Bc4 {[%clk 0:02:47.5]} 6... Qb6 {[%clk
0:02:49.5]} 7. Nb3 {[%clk 0:02:46.5]} 7... g6 {[%clk 0:02:48.1]} 8. Bg5 {[%clk
0:02:26.8]} 8... Be6 {[%clk 0:02:25.2]} 9. Bxf6 {[%clk 0:02:02.5]} 9... exf6
{[%clk 0:02:21.6]} 10. Nd5 {[%clk 0:01:54.8]} 10... Qd8 {[%clk 0:02:14.3]} 11.
Nd4 {[%clk 0:01:41.3]} 11... Nxd4 {[%clk 0:01:58.4]} 12. Qxd4 {[%clk 0:01:42.2]}
12... Bg7 {[%clk 0:01:58.9]} 13. Bb5+ {[%clk 0:01:10.2]} 13... Kf8 {[%clk
0:01:54.1]} 14. c3 {[%clk 0:00:55.2]} 14... f5 {[%clk 0:01:47.7]} 15. Qd3 {[%clk
0:00:44.5]} 15... a6 {[%clk 0:01:37]} 16. Bc4 {[%clk 0:00:43.1]} 16... b5 {[%clk
0:01:34.6]} 17. Bb3 {[%clk 0:00:43.1]} 17... fxe4 {[%clk 0:01:30]} 18. Qxe4
{[%clk 0:00:44]} 18... Qg5 {[%clk 0:01:29.8]} 19. Nf4 {[%clk 0:00:27.9]} 19...
d5 {[%clk 0:01:18.5]} 20. Qxe6 {[%clk 0:00:12.5]} 20... Re8 {[%clk 0:01:13.1]}
21. Qxe8+ {[%clk 0:00:04]} 21... Kxe8 {[%clk 0:01:13]} 22. g3 {[%clk 0:00:04.3]}
22... d4 {[%clk 0:01:01]} 0-1

[Event "Late-Titled-Tuesday-Blitz-April-23-2024"]
[Site "Chess.com"]
[Date "2024.04.23"]
[Round "6"]
[White "dasatcu90"]
[Black "m_ezat"]
[Result "0-1"]
[WhiteElo "2204"]
[BlackElo "2611"]
[TimeControl "180+1"]
[EndTime "15:06:57 PDT"]
[Termination "m_ezat won by resignation"]

1. d4 {[%clk 0:03:00.9]} 1... Nf6 {[%clk 0:02:47.6]} 2. Nf3 {[%clk 0:03:01.3]}
2... g6 {[%clk 0:02:47.4]} 3. c4 {[%clk 0:03:01.1]} 3... Bg7 {[%clk 0:02:47.4]}
4. Nc3 {[%clk 0:03:01.7]} 4... O-O {[%clk 0:02:47.9]} 5. Bg5 {[%clk 0:03:02.2]}
5... d5 {[%clk 0:02:47.2]} 6. Bxf6 {[%clk 0:03:01.2]} 6... Bxf6 {[%clk
0:02:46.7]} 7. Nxd5 {[%clk 0:02:56.1]} 7... Bg7 {[%clk 0:02:46.5]} 8. e3 {[%clk
0:02:55.8]} 8... c5 {[%clk 0:02:45.9]} 9. Be2 {[%clk 0:02:50.1]} 9... Nc6 {[%clk
0:02:44.8]} 10. O-O {[%clk 0:02:41]} 10... cxd4 {[%clk 0:02:25]} 11. Nxd4 {[%clk
0:02:24]} 11... Nxd4 {[%clk 0:02:23.5]} 12. exd4 {[%clk 0:02:23.4]} 12... e6
{[%clk 0:02:23.7]} 13. Nc3 {[%clk 0:02:11.6]} 13... Bxd4 {[%clk 0:02:18.5]} 14.
Qc2 {[%clk 0:02:07.5]} 14... e5 {[%clk 0:02:09]} 15. Bf3 {[%clk 0:02:01.9]}
15... a6 {[%clk 0:02:03.2]} 16. Rad1 {[%clk 0:01:58.9]} 16... Be6 {[%clk
0:01:54.2]} 17. Bd5 {[%clk 0:01:52.7]} 17... Bg4 {[%clk 0:01:49.9]} 18. Ne2
{[%clk 0:01:37]} 18... Rc8 {[%clk 0:01:45.7]} 19. Bxb7 {[%clk 0:01:20.7]} 19...
Rb8 {[%clk 0:01:40.8]} 20. Nxd4 {[%clk 0:00:48.7]} 20... Bxd1 {[%clk 0:01:38.8]}
21. Rxd1 {[%clk 0:00:48]} 21... exd4 {[%clk 0:01:24.2]} 22. Bd5 {[%clk
0:00:39.8]} 22... Qf6 {[%clk 0:01:24]} 23. b3 {[%clk 0:00:36.8]} 23... Rfe8
{[%clk 0:01:22.3]} 24. g3 {[%clk 0:00:36]} 24... Re5 {[%clk 0:01:17.7]} 25. Kg2
{[%clk 0:00:30.4]} 25... Rbe8 {[%clk 0:01:15.9]} 26. Rxd4 {[%clk 0:00:24.3]}
26... Re2 {[%clk 0:01:12.9]} 27. Rd2 {[%clk 0:00:24.1]} 27... Qxf2+ {[%clk
0:01:11.9]} 28. Kh3 {[%clk 0:00:17.4]} 28... Qxh2+ {[%clk 0:01:11.6]} 29. Kg4
{[%clk 0:00:17.9]} 29... Qh5+ {[%clk 0:01:04.9]} 30. Kf4 {[%clk 0:00:18]} 30...
Rxd2 {[%clk 0:01:04.9]} 31. Qxd2 {[%clk 0:00:17.9]} 31... Qh6+ {[%clk
0:01:05.1]} 0-1